Cogmind - Beta 14 @@@ ROGUE MODE // 2025.03.07 @ 21:36:36 Player: Lava Result: Destroyed by G-34 Mercenary with Small Laser Performance ------------- Evolutions (1) 500 Regions Visited (2) 400 Robots Destroyed (22) 110 Value Destroyed (488) 488 Prototype IDs (0) 0 Alien Tech Used (0) 0 Bonus (43) 43 TOTAL SCORE: 1541 Bonus ------- High Alert Combat Kills 43 Cogmind --------- Core Integrity 0/400 Matter 30/300 Energy 100/100 System Corruption 0% Temperature Cool (12) Movement Core (1350) Ox26 Location -9/Materials Parts ------- > --- POWER (1) -------- (None) > --- PROPULSION (3) --- (None) > --- UTILITY (3) ------ Huge Storage Unit Hacking Suite > --- WEAPON (2) ------- (None) > --- INVENTORY (25) --- Aluminum Leg Aluminum Leg Seismic Detector Spread Laser Light Assault Rifle Light Assault Rifle Grenade Launcher Mini Grenade Launcher Mini Grenade Launcher Peak State ------------ > --- POWER ------------ Ion Engine > --- PROPULSION ------- Wheel Wheel > --- UTILITY ---------- Huge Storage Unit Seismic Detector Hacking Suite > --- WEAPON ----------- Mini Grenade Launcher Mini Grenade Launcher > --- INVENTORY -------- Seismic Detector Spread Laser Light Assault Rifle Light Assault Rifle Grenade Launcher Mini Grenade Launcher Mini Grenade Launcher [Rating: 13] Favorites ----------- Power Ion Engine Engine Ion Engine Propulsion Wheel Wheel Wheel Utility Hacking Suite Device Seismic Detector Storage Huge Storage Unit Hackware Hacking Suite Weapon Mini Grenade Launcher Ballistic Gun Light Assault Rifle Launcher Mini Grenade Launcher Build | -11 -10 -9 ------- Run | Yrd Mat Mat Slots Evolved 2 | . . 2 Power . | . . . Propulsion 1 | . . 1 Utility 1 | . . 1 Weapon . | . . . Parts Attached 15 | 5 8 2 Power 2 | 1 1 . Engine 2 | 1 1 . Core . | . . . Reactor . | . . . Propulsion 2 | 2 . . Treads . | . . . Leg . | . . . Wheel 2 | 2 . . Hover . | . . . Flight . | . . . Utility 5 | . 4 1 Device 2 | . 1 1 Storage 2 | . 2 . Processor . | . . . Hackware 1 | . 1 . Protection . | . . . Artifact . | . . . Weapon 6 | 2 3 1 Energy Gun . | . . . Energy Cannon . | . . . Ballistic Gun 3 | 2 1 . Ballistic Cannon . | . . . Launcher 3 | . 2 1 Special Weapon . | . . . Impact Weapon . | . . . Slashing Weapon . | . . . Piercing Weapon . | . . . Special Melee Weapon . | . . . Unidentified Prototypes . | . . . Parts Lost 6 | . . 6 Power 1 | . . 1 Propulsion 2 | . . 2 Utility 1 | . . 1 Weapon 2 | . . 2 Highest Loss Streak 5 | . . 5 To Critical Strikes . | . . . Average Slot Usage (%) 79 | . 96 70 Engine 10 | . 14 8 Wheel 17 | . 28 11 Device 8 | . 6 9 Storage 11 | . 12 11 Hackware 9 | . 6 11 Ballistic Gun 6 | . 15 . Launcher 15 | . 12 18 Peak Build Rating 13 | 5 11 13 Average Rating 9 | 3 9 11 On Entrance 5 | . 5 11 Naked Turns . | . . . Heaviest Build 88 | 5 87 88 Greatest Support 20 | 20 20 20 Greatest Overweight (x) 27 | . 4 27 Average Overweight (x) 3 | . . 7 Largest Inventory Capacity 25 | 5 25 25 Average Capacity 19 | 5 13 25 Most Carried 10 | 3 10 9 Average Carried 7 | . 8 7 Final Capacity 25 | 5 25 25 Final Carried 9 | 2 8 9 Class Distribution -------------------- 100% | Mutant Dominant Class ---------------- Mutant | -10/Materials Mutant | -9/Materials Resources | -11 -10 -9 ----------- Run | Yrd Mat Mat Matter Collected 404 | 252 18 134 Remotely . | . . . Salvage Created 303 | 43 18 242 Parts 38 | 2 6 30 Haulers Intercepted . | . . . Recyclers Shooed . | . . . Parts Field Recycled . | . . . Retrieved Matter . | . . . Parts Self-Destructed . | . . . Prevented . | . . . Kills | -11 -10 -9 ------- Run | Yrd Mat Mat Combat Hostiles Destroyed 14 | 1 . 13 Guns 1 | 1 . . AOE 13 | . . 13 Classes Destroyed 8 | 1 3 4 Worker 1 | . . 1 Builder 1 | . 1 . Tunneler 1 | . . 1 Operator 2 | . 1 1 Watcher 3 | . 1 2 Swarmer 8 | . . 8 Grunt 5 | 1 . 4 Sentry 1 | . . 1 Best Kill Streak 8 | 1 2 8 Combat Bots Only 8 | 1 . 8 Max Kills in Single Turn 4 | 1 1 4 Gunslinging . | . . . Exploded 4 | . . 4 Melee . | . . . Uniques/NPCs Destroyed . | . . . Combat | -11 -10 -9 -------- Run | Yrd Mat Mat Hostile Shots Fired 112 | 1 1 110 Missed 48 | . . 48 Damage Taken 880 | 12 58 810 Core 428 | 12 16 400 Absorbed by Shields . | . . . Core Remaining (%) 91 | 95 88 . Volleys Fired 27 | 1 13 13 Largest 2 | 2 2 2 Hottest 60 | 40 60 60 Shots Fired 44 | 2 16 26 Gun 9 | 2 7 . Cannon . | . . . Launcher 35 | . 9 26 Special . | . . . Kinetic 9 | 2 7 . Thermal . | . . . Explosive 35 | . 9 26 Electromagnetic . | . . . Robot Hit Streak 3 | 2 3 2 Robot Miss Streak 3 | . 2 3 Penetration Max . | . . . Secondary Targets . | . . . Shots Hit Robots 15 | 2 5 8 Core Hits 28 | 1 5 22 Critical Kills 1 | 1 . . Critical Parts Destroyed . | . . . Critical Strikes 1 | 1 . . Destroy 1 | 1 . . Melee Attacks . | . . . Impact . | . . . Slashing . | . . . Piercing . | . . . Sneak Attacks . | . . . Combat Hostiles . | . . . Follow-up Attacks . | . . . Damage Inflicted 1425 | 15 253 1157 Guns 52 | 15 37 . Cannons . | . . . Explosions 1372 | . 216 1156 Melee . | . . . Ramming 1 | . . 1 Kinetic 52 | 15 37 . Thermal . | . . . Explosive 1372 | . 216 1156 Electromagnetic . | . . . Impact . | . . . Slashing . | . . . Piercing . | . . . Highest Corruption . | . . . Average Corruption . | . . . Corruption Purged . | . . . Corruption Blocked . | . . . Overload Shots . | . . . Overflow Damage 66 | . 14 52 Projectiles . | . . . Explosions 66 | . 14 52 Melee . | . . . Knockbacks . | . . . Impact . | . . . Kinetic . | . . . Secondary . | . . . Self-Inflicted Damage 190 | . 48 142 Shots 7 | . 1 6 Rammed 1 | . . 1 Targets Rammed 1 | . . 1 Kicked . | . . . Crushed . | . . . Highest Temperature 20 | 6 20 6 Average Temperature 10 | 6 20 3 Received Heat Transfer 345 | 6 . 339 Siege Activations . | . . . Robots Corrupted . | . . . Combat Hostiles . | . . . Parts Fried . | . . . Impact Corruptions . | . . . Robots Melted . | . . . Combat Hostiles . | . . . Parts Melted . | . . . Heat Transferred . | . . . Parts Sabotaged . | . . . Parts Stolen . | . . . Parts Stripped . | . . . Power Chain Reactions . | . . . Alert | -11 -10 -9 ------- Run | Yrd Mat Mat Peak Influence 653 | 20 164 653 Initial 68 | . 13 68 Average 300 | 5 104 456 Maximum Alert Level 2 | . . 2 Low Security (%) 46 | 100 100 8 Level 1 13 | . . 23 Level 2 39 | . . 68 Level 3 . | . . . Level 4 . | . . . Level 5 . | . . . High Security . | . . . Max Security . | . . . Squads Dispatched 2 | . . 2 Investigation 1 | . . 1 Extermination . | . . . Reinforcement 1 | . . 1 Assault . | . . . Garrison . | . . . Intercept . | . . . Searches Triggered . | . . . Construction Impeded . | . . . Haulers Reinforced . | . . . Active Scanning Responses . | . . . Cargo Convoy Interrupts . | . . . Stealth | -11 -10 -9 --------- Run | Yrd Mat Mat Distress Signals 1 | . . 1 Communications Jammed . | . . . Distress Signals . | . . . Times Spotted 27 | 1 5 21 Peak Tracking Total 5 | 1 2 5 Tactical Retreats . | . . . Traps | -11 -10 -9 ------- Run | Yrd Mat Mat Traps Triggered . | . . . Indirectly . | . . . Trap Hack Attempts . | . . . Triggered . | . . . Disarmed . | . . . Reprogrammed . | . . . Reused . | . . . Traps Extracted . | . . . Installed . | . . . Triggered . | . . . Machines | -11 -10 -9 ---------- Run | Yrd Mat Mat Machines Disabled 10 | . 4 6 Max in Single Turn 2 | . 2 2 Machines Repaired . | . . . Machines Dismantled . | . . . Machines Sabotaged . | . . . Overloaded Fab Kills . | . . . Hacking | -11 -10 -9 --------- Run | Yrd Mat Mat Machines Accessed 3 | . 1 2 Terminals 3 | . 1 2 Fabricators . | . . . Repair Stations . | . . . Recycling Units . | . . . Scanalyzers . | . . . Garrison Access . | . . . Total Hacks 16 | . 4 12 Successful 13 | . 4 9 Failed 3 | . . 3 Catastrophic . | . . . Database Lockouts . | . . . Manual . | . . . Terminals 16 | . 4 12 Fabricators . | . . . Repair Stations . | . . . Recycling Units . | . . . Scanalyzers . | . . . Garrison Access . | . . . Terminal Hacks 13 | . 4 9 Record 3 | . . 3 Alert Level 1 | . 1 . Locate Traps 2 | . 1 1 Dispatch Records 2 | . 1 1 Investigation Status 1 | . . 1 Recall Investigation 1 | . . 1 Hauler Manifests 1 | . . 1 Registered Components 1 | . 1 . Zone Layout 1 | . . 1 Fabricator Hacks . | . . . Repair Station Hacks . | . . . Recycling Unit Hacks . | . . . Scanalyzer . | . . . Garrison Access Hacks . | . . . Unauthorized Hacks . | . . . Terminals . | . . . Fabricators . | . . . Repair Stations . | . . . Recycling Units . | . . . Scanalyzers . | . . . Garrison Access . | . . . Data Cores Recovered . | . . . Used . | . . . Hacking Detections 3 | . 1 2 Full Trace Events 2 | . . 2 Feedback Events . | . . . Feedback Blocked . | . . . Robot Schematics Acquired . | . . . Robots Built . | . . . Authchips . | . . . Time . | . . . Total Robot Build Rating . | . . . Part Schematics Acquired . | . . . Parts Built . | . . . Authchips . | . . . Time . | . . . Total Part Build Rating . | . . . Parts Repaired . | . . . Time . | . . . Parts Recycled . | . . . Recycled Matter . | . . . Retrieved Matter . | . . . Retrieved Components . | . . . Parts Scanalyzed . | . . . Part Schematics Acquired . | . . . Parts Damaged . | . . . Bothacking | -11 -10 -9 ------------ Run | Yrd Mat Mat Used RIF Installer . | . . . Robots Hacked . | . . . Non-combat . | . . . Combat . | . . . Robot Hacks Applied . | . . . Relay Couplers Released . | . . . Fabnet Peak Effective % . | . . . Robots Rewired . | . . . Allies Hacked . | . . . Hacks Repelled . | . . . Allies | -11 -10 -9 -------- Run | Yrd Mat Mat Total Allies . | . . . Largest Group . | . . . Highest-Rated Group . | . . . Highest-Rated Ally . | . . . Total Orders . | . . . Ally Attacks . | . . . Total Damage . | . . . Kills . | . . . Allies Corrupted . | . . . Allies Melted . | . . . Intel | -11 -10 -9 ------- Run | Yrd Mat Mat Robot Analysis Total . | . . . Derelict Logs Recovered . | . . . Drone Launches . | . . . Drone Recoveries . | . . . Exploration | -11 -10 -9 ------------- Run | Yrd Mat Mat Turns Passed 752 | 60 256 436 Spaces Moved 466 | 63 225 178 Core 21 | 16 . 5 Treads . | . . . Legs . | . . . Wheels 445 | 47 225 173 Hover . | . . . Flight . | . . . Fastest Speed 50 | 50 80 140 Average Speed 136 | 72 91 215 Slowest Speed 1400 | 80 140 1400 Overloaded Moves . | . . . Propulsion Burnouts . | . . . Robots Hopped . | . . . Cave-ins Triggered . | . . . Exploration Rate (%) 22 | 5 40 23 Regions Visited 2 Branch Regions . Pre-discovered Areas . | . . . Known Exits Taken . | . . . Unknown Exits Taken 2 | 1 1 . Scrap Searched . | . . . Spaces Dug . | . . . Terrain Destroyed 163 | . 20 143 Melee . | . . . Projectile . | . . . AOE 163 | . 20 143 Terrain Rammed . | . . . Walls Destroyed . | . . . Machines Disabled . | . . . Actions | -11 -10 -9 --------- Run | Yrd Mat Mat Total 532 | 75 261 196 Wait . | . . . Move 464 | 62 224 178 Hop . | . . . Pick Up 20 | 7 11 2 Fast Attach . | . . . Attach 8 | 5 2 1 Detach . | . . . Swap 7 | . 6 1 Drop 5 | . 5 . Fire 27 | 1 13 13 Melee . | . . . Ram 1 | . . 1 Kick . | . . . Crush . | . . . Escape Stasis . | . . . Rewire . | . . . Trap . | . . . Miscellaneous . | . . . Route ------- -11/Scrapyard -10/Materials -9/Materials History --------- Turn | Location | Event 2 | -11/Scrapyard | Met Revision 17 42 | -11/Scrapyard | Discovered new exit (range 8) 61 | -11/Scrapyard | Entered Materials 299 | -10/Materials | Discovered new exit (range 10) 303 | -10/Materials | Build established: Mutant 317 | -10/Materials | Entered another Materials area 317 | -9/Materials | Evolved 2 slots: Propulsion x1, Utility x1 379 | -9/Materials | Destroyed 8 combat bots 705 | -9/Materials | Core integrity fell below 50% 740 | -9/Materials | Lost 5 parts (1p1n1u2w) 742 | -9/Materials | Core integrity fell below 20% 753 | -9/Materials | Destroyed by G-34 Mercenary with Small Laser Last Messages --------------- Mni. Grenade Launcher destroyed. U-05 Engineer builds a Wall. U-05 Engineer lays Concrete. Seismic Detector destroyed. U-05 Engineer lays Concrete. U-05 Engineer builds a Wall. U-05 Engineer lays Concrete. K-01 Serf collects debris. C-30 ARC bursts open, deploying its payload. L-31 Rogue unfolds itself. G-34 Mercenary unfolds itself. Slammed into G-34 Mercenary. K-01 Serf collects debris. U-05 Engineer lays Concrete. K-01 Serf collects debris. U-05 Engineer lays Concrete. G-34 Mercenary destroyed. U-05 Engineer lays Concrete. K-01 Serf collects debris. U-05 Engineer builds a Door. Map ----- +----------------------------------------------------+ | ?????#! ]]] #??????????????????? | | ?""S # ]]] " ###########????????? | | ?"" # ]]] * ???????? | | ? + * ???????? | | ?"" # ???????? | | ?"" ## ### # #### ???????? | | ?"" # " #### ## ???????? | | ? # "T" ## #??# #### ????????? | | #+##+# ## #??# #??# ????????? | | # # * # #??# #??# ?????????? | | # # #??# #??# ##########?????????? | | ! #??# #??# #??????????????????? | | ?### # +##### #??#####??????????????????? | | ???# # # #?????????????????????????? | | ???# # """ """ # #?????????????????????????? | | ???# # """ """ "" # #?????????????????????????? | | ???# # """ """ T" # #?????????????????????????? | | ???# # "" # #?????????????????????????? | | ???# # | #" #?????????????????????????? | | ???# ###+###########%" ########??????????????????? | | ???# #?# #??# # # l #??????????????????? | | ???# #?# #??# #k # """ #??????????????????? | | ???# #?# #??# + + """ #??????????????????? | | ???# #?# #??# "T" # u#g""" ##?????????????????? | | #### #?# #??# """ # rgg # ?????????????????? | | ## # ### #??# # %@ ##?????????????????? | | # # # #??######## # #+#####?????????????????? | | #????????## k # #???#?????????????????? | | # ##???????## #########?????????????????? | | * ##????????# #?# ?????????????????? | | [ ########### #?# ?????????????????? | | !! # # #?# """?????????????????? | | "" ! # # #?????????????????????????? | | #### # #?????????????????????????? | | ??#### + #?????????????????????????? | | ?????## # ##????????????????????????? | | ????## # """"" #????????????????????????? | | ??### %= """"" #######??????????????????? | | ??# | """"" #??????????????????? | | ??# ######## #??????????????????? | | ??# ##### """ #??????????????????? | | ??## ### """ #??????????????????? | | ???# ! ## """ #??????????????????? | | ???#! ## #??????????????????? | | ???#! ## #######??????????????????? | | ???#! ## ?????????????????????? | | ???#! #### """ ??????????????????? | | ???##! ##?##### # """????????????????????? | | ????#### #??????# ## # """????????????????????? | | ???????# #??????##?# # ????????????????????? | +----------------------------------------------------+ Best States ------------- Heat Dissipation 28 Energy Generation 10 Energy Capacity 250 Matter Stores 300 Matter Capacity 300 Sight Range 16 Terrain Scan Density 10 Evasion (%) 50 Offensive Hacking 10 Item Schematics ----------------- None Robot Schematics ------------------ None Fabricated ------------ Nothing Alien Tech Used ----------------- None Achievements -------------- Oops Shopping List Challenges ------------ None Game ------ Seed DimensionalFortressShovel Manual? 0 Play Time 00:14:36 Cumulative 2.4 hours Start 2025.03.07 @ 21:23:10 End 2025.03.07 @ 21:36:36 Sessions 1 Manual Loads 0 Difficulty Rogue Special Mode None Game No. 3 Rogue 3 Adventurer 0 Explorer 0 Win Type - Total 0 Types 0/0/0/0/0/0/0/0/0 Lore% 4 Gallery% 4 Achievement% 7 Wizard Run 0 Options --------- Layout 1 ASCII 0 Keyboard 0 Movement Mouse Keybinds 0 Fullscreen 1 Font 32/SmallcapsGlow Map View 50x40 Zoom Use 58% Tactical HUD 0 Map Filters NONE Filters NONE Steam 1 RUN: 1432b7d2-c6d2-447d-bc1f-3d355e576c21